bitfinex/quotes_ETHUSD_20240602
["timestamp","ask_amount","ask_price","bid_price","bid_amount"]
[1717294507121,0.55,3823.4,3823.3,0.702]
[1717294517591,2.3897,3823.1,3823.0,0.702]
[1717294517977,2.9397,3823.1,3823.0,0.702]
[1717294519184,2.61578,3823.0,3822.5,0.032064]
[1717294519365,0.55,3822.9,3822.5,0.032064]
[1717294519790,0.55,3822.9,3822.8,0.702]
[1717294521195,2.61589,3822.8,3822.5,0.032064]
[1717294521403,2.4119,3822.6,3822.5,0.032064]
[1717294521614,2.9619,3822.6,3822.5,0.032064]
[1717294521898,5.57792,3822.6,3822.5,0.032064]
[1717294522273,6.135712,3822.6,3822.5,0.032064]
[1717294525417,5.57792,3822.6,3822.5,0.032064]
[1717294529111,5.57792,3822.6,3822.5,0.734064]
[1717294530419,3.16602,3822.6,3822.5,0.734064]
[1717294535925,3.16602,3822.6,3822.5,0.032064]
[1717294536432,8.89594,3822.6,3822.5,0.032064]
[1717294536630,13.060734,3822.6,3822.5,0.032064]
[1717294538154,13.99382696,3822.6,3822.5,0.032064]
[1717294538446,12.358734,3822.6,3822.5,0.032064]
[1717294542319,5.61602,3822.6,3822.5,0.032064]
[1717294542528,2.61602,3822.6,3822.5,0.032064]
[1717294543810,3.16602,3822.6,3822.5,0.032064]
[1717294551713,0.55,3822.6,3822.5,0.07791789]
[1717294551908,0.55,3822.9,3822.5,0.07791789]
[1717294552137,0.55,3822.9,3822.8,0.702]
[1717294553051,4.97789,3822.8,3822.5,0.032064]
[1717294553350,2.61602,3822.6,3822.5,0.032064]
[1717294553556,3.16602,3822.6,3822.5,0.032064]
[1717294557137,3.16602,3822.6,3822.5,0.07762905]
[1717294557756,0.55,3822.6,3822.5,0.07762905]
[1717294558047,0.55,3822.9,3822.5,0.07762905]
[1717294560351,2.61589,3822.8,3822.5,0.032064]
[1717294560664,0.55,3822.7,3822.5,0.032064]
[1717294561229,0.55,3822.7,3822.6,0.0455745]
[1717294561424,0.55,3822.7,3822.5,0.032064]
[1717294561732,2.61602,3822.6,3822.5,0.032064]
[1717294561929,3.16602,3822.6,3822.5,0.032064]
[1717294563782,0.55,3822.6,3822.5,0.032064]
[1717294564065,2.61589,3822.8,3822.5,0.032064]
[1717294564282,2.61602,3822.6,3822.5,0.07763161]
[1717294564432,2.61602,3822.6,3822.5,0.032064]
[1717294564637,3.16602,3822.6,3822.5,0.032064]
[1717294565658,3.16602,3822.6,3822.5,0.07762139]
[1717294565863,3.16602,3822.6,3822.5,0.032064]
[1717294566063,3.16602,3822.6,3822.5,0.07762139]
[1717294566264,3.16602,3822.6,3822.5,0.032064]
[1717294566470,3.16602,3822.6,3822.5,0.07762139]
[1717294566652,3.16602,3822.6,3822.5,0.032064]
[1717294570568,3.64593848,3822.6,3822.5,0.032064]
[1717294571452,5.2791033,3822.6,3822.5,0.032064]
[1717294571958,3.64593848,3822.6,3822.5,0.032064]
[1717294573764,5.2791033,3822.6,3822.5,0.032064]
[1717294573993,3.64593848,3822.6,3822.5,0.032064]
[1717294577969,5.28114166,3822.6,3822.5,0.032064]
[1717294578167,4.80122318,3822.6,3822.5,0.032064]
[1717294579694,3.16602,3822.6,3822.5,0.032064]
[1717294581081,5.65642,3822.6,3822.5,0.032064]
[1717294581285,3.16602,3822.6,3822.5,0.032064]
[1717294581610,4.80106592,3822.6,3822.5,0.032064]
[1717294581825,8.17675461,3822.6,3822.5,0.032064]
[1717294582001,6.54170869,3822.6,3822.5,0.032064]
[1717294583119,4.05130869,3822.6,3822.5,0.032064]
[1717294583415,5.68640233,3822.6,3822.5,0.032064]
[1717294583998,4.05130869,3822.6,3822.5,0.032064]
[1717294588899,6.54170869,3822.6,3822.5,0.032064]
[1717294589198,7.10738934,3822.6,3822.5,0.032064]
[1717294591197,6.54170869,3822.6,3822.5,0.032064]
[1717294592773,4.05130869,3822.6,3822.5,0.032064]
[1717294593275,3.16602,3822.6,3822.5,0.032064]
[1717294593585,5.65642,3822.6,3822.5,0.032064]
[1717294594678,6.22208825,3822.6,3822.5,0.032064]
[1717294595014,5.65642,3822.6,3822.5,0.032064]
[1717294598123,3.73168884,3822.6,3822.5,0.032064]
[1717294598615,3.16602,3822.6,3822.5,0.032064]
[1717294601524,6.40882743,3822.6,3822.5,0.032064]
[1717294601817,8.88216539,3822.6,3822.5,0.032064]
[1717294602021,8.53375116,3822.6,3822.5,0.032064]
[1717294603398,5.29094373,3822.6,3822.5,0.032064]
[1717294610022,3.7316752,3822.6,3822.5,0.032064]
[1717294610228,5.29094373,3822.6,3822.5,0.032064]
[1717294610428,3.7316752,3822.6,3822.5,0.032064]
[1717294610629,5.29094373,3822.6,3822.5,0.032064]
[1717294610787,6.24530638,3822.6,3822.5,0.032064]
[1717294612604,4.12038265,3822.6,3822.5,0.032064]
[1717294613054,12.08140265,3822.6,3822.5,0.032064]
[1717294614200,14.83340265,3822.6,3822.5,0.032064]
[1717294614506,15.53640265,3822.6,3822.5,0.032064]
[1717294622908,15.53640265,3822.6,3822.5,4e-06]
[1717294622909,19.47456187,3822.6,3822.5,4e-06]
[1717294623105,22.17797339,3822.6,3822.5,4e-06]
[1717294624420,20.15283417,3822.6,3822.5,4e-06]
[1717294624619,17.44942265,3822.6,3822.5,4e-06]
[1717294624847,18.15242265,3822.6,3822.5,4e-06]
[1717294625623,17.44942265,3822.6,3822.5,4e-06]
[1717294626451,12.08140265,3822.6,3822.5,4e-06]
[1717294626748,14.34561431,3822.6,3822.5,4e-06]
[1717294627111,12.09718987,3822.6,3822.5,4e-06]
[1717294627751,9.75218987,3822.6,3822.5,4e-06]
[1717294628550,14.43811431,3822.6,3822.5,4e-06]
[1717294629557,14.98811621,3822.6,3822.5,4e-06]
[1717294630025,12.73969177,3822.6,3822.5,4e-06]
[1717294633871,10.30219177,3822.6,3822.5,4e-06]
[1717294635563,17.60413621,3822.6,3822.5,4e-06]
[1717294636563,15.35571177,3822.6,3822.5,4e-06]
[1717294636734,17.60318482,3822.6,3822.5,4e-06]
[1717294637344,15.35571177,3822.6,3822.5,4e-06]
[1717294639447,17.60282128,3822.6,3822.5,4e-06]
[1717294639773,15.35571177,3822.6,3822.5,4e-06]
[1717294639947,19.42985099,3822.6,3822.5,4e-06]
[1717294640150,2.61718,3820.9,3820.8,0.1291802]
[1717294640666,3.16718,3820.9,3820.8,2.4448802]
[1717294644579,4.24652824,3821.3,3820.8,2.4448802]
[1717294644790,2.61696,3821.3,3820.9,1.688]
[1717294644975,2.61696,3821.3,3821.0,2.49741802]
[1717294646488,0.55,3821.2,3821.0,2.49741802]
[1717294646993,0.55,3821.2,3821.1,2.35540442]
[1717294663586,1.62956824,3821.6,3821.1,2.35540442]
[1717294663587,2.61671,3821.6,3821.1,2.35540442]
[1717294663896,2.61671,3821.6,3821.2,0.23554044]
[1717294664310,2.61671,3821.6,3821.3,0.03949633]
[1717294664664,2.61671,3821.6,3821.2,0.23554044]
[1717294664905,0.55,3821.5,3821.4,2.30306232]
[1717294665211,0.55,3821.5,3821.4,2.51746028]
[1717294665362,1.63335396,3821.8,3821.4,2.5569226]
[1717294666057,4.24985396,3821.9,3821.4,2.5569226]
[1717294666394,1.63335396,3821.9,3821.4,2.5569226]
[1717294666762,0.55,3821.8,3821.4,2.5569226]
[1717294666963,0.55,3822.0,3821.5,0.2792463]
[1717294667259,0.55,3822.0,3821.6,0.0393943]
[1717294667464,1.63335396,3822.1,3821.6,0.0393943]
[1717294667683,1.63335396,3822.1,3821.9,4.88008]
[1717294667898,1.63335396,3822.7,3822.1,2.61632]
[1717294668061,1.63335396,3822.9,3822.2,1.688]
[1717294668278,1.63335396,3823.0,3822.2,1.72719027]
[1717294668466,4.24906396,3823.1,3822.3,2.76363183]
[1717294668866,4.24906396,3823.1,3822.4,0.09143897]
[1717294669169,2.61571,3823.1,3822.4,0.09143897]
[1717294670402,0.55,3823.0,3822.4,0.09143897]
[1717294670607,0.55,3823.0,3822.5,0.45430708]
[1717294671121,7.32,3823.2,3822.6,0.03905428]
[1717294671467,7.32,3823.2,3822.5,0.45430708]
[1717294672269,7.32,3823.2,3822.6,4.30399]
[1717294673169,0.55,3823.1,3822.6,4.30399]
[1717294673371,0.55,3823.1,3822.7,0.47582971]
[1717294673665,0.55,3823.1,3822.7,0.51446825]
[1717294673971,0.55,3823.4,3822.7,0.51446825]
[1717294680941,0.55,3823.4,3823.0,1.688]
[1717294681230,0.55,3823.5,3823.1,0.69592183]
[1717294683200,0.55,3823.5,3823.1,0.03800883]
[1717294685627,3.55,3823.8,3823.1,0.03800883]
[1717294685835,3.55,3823.8,3823.0,1.688]
[1717294686034,3.0,3823.8,3823.1,2.61565]
[1717294686203,3.0,3823.8,3823.2,0.657895]
[1717294686403,3.0,3823.8,3823.2,0.69563447]
[1717294688847,2.61514,3823.9,3823.3,2.2753]
[1717294689050,0.55,3823.8,3823.3,2.2753]
[1717294689220,0.55,3823.8,3823.4,1.72563336]
[1717294689421,0.55,3823.8,3823.5,0.46588284]
[1717294689747,0.55,3823.8,3823.6,0.03753743]
[1717294691727,7.32,3824.6,3823.7,2.2753]
[1717294691941,7.32,3824.6,3823.8,1.688]
[1717294692127,7.32,3824.6,3823.9,0.40008374]
[1717294693154,3.55,3824.5,3823.9,0.40008374]
[1717294693841,3.55,3824.5,3824.0,0.03729729]
[1717294697135,0.55,3824.5,3824.0,2.65232729]
[1717294697335,0.55,3824.6,3824.2,2.2753]
[1717294697737,0.55,3824.6,3824.3,0.03694876]
[1717294701090,5.11212,3824.5,3824.3,0.03694876]
[1717294701390,0.55,3824.4,3823.5,2.2799]
[1717294701562,0.55,3824.4,3823.6,0.39679]
[1717294701899,2.61495,3824.2,3823.6,0.39679]
[1717294702055,2.61495,3824.2,3823.7,0.03697718]
[1717294702252,0.55,3824.1,3823.7,0.03697718]
[1717294702871,0.55,3824.1,3822.2,2.61624]
[1717294702872,0.55,3824.1,3823.8,0.03694321]
[1717294703094,3.55,3824.4,3822.9,2.2799]
[1717294703261,2.61506,3824.0,3823.0,2.61569]
[1717294703460,0.55,3823.9,3823.1,0.658359]
[1717294703769,0.55,3823.9,3823.2,3.9679]
[1717294703970,0.55,3823.9,3823.2,4.00504706]
[1717294704979,0.55,3823.9,3823.3,2.61553]
[1717294705295,2.61485,3824.4,3823.7,2.2799]
[1717294705497,2.61485,3824.4,3824.0,1.688]
[1717294705698,7.32,3824.6,3824.0,1.688]
[1717294705889,7.32,3824.6,3824.1,0.03685397]
[1717294706862,0.55,3824.5,3824.1,0.03685397]
[1717294707761,2.61479,3824.4,3824.1,0.03685397]
[1717294708009,0.55,3824.3,3823.7,2.2799]
[1717294708186,0.55,3824.3,3823.7,2.97096789]
[1717294708495,7.32,3824.6,3824.0,1.688]
[1717294708708,0.55,3824.5,3824.1,0.03683872]
[1717294709071,0.55,3824.6,3824.1,0.03683872]
[1717294710113,2.61475,3824.5,3824.1,0.03683872]
[1717294710303,0.55,3824.4,3823.7,4.89509]
[1717294710501,0.55,3824.4,3823.8,0.03694063]
[1717294710817,0.55,3824.4,3823.7,4.89509]
[1717294712093,2.61486,3824.3,3823.6,1.688]
[1717294712313,0.55,3824.2,3823.6,1.688]
[1717294712493,0.55,3824.2,3823.7,0.0369746]
[1717294715090,0.55,3824.2,3823.4,2.2799]
[1717294715420,0.55,3824.2,3823.8,0.03699909]
[1717294715721,0.55,3824.2,3823.4,2.2799]
[1717294715897,0.55,3824.2,3823.9,0.03696512]
[1717294716098,0.55,3824.2,3823.4,2.2799]
[1717294716299,0.55,3824.2,3823.0,4.89564]
[1717294716616,3.18720004,3824.4,3823.0,4.89564]
[1717294716816,4.53000408,3824.3,3823.0,4.89564]
[1717294717012,1.53000408,3824.3,3823.1,0.03724713]
[1717294717333,2.61519,3823.9,3823.1,0.03724713]
[1717294717539,0.55,3823.8,3823.1,0.03724713]
[1717294719146,0.55,3823.8,3823.0,4.89564]
[1717294719357,0.55,3823.8,3823.0,5.554004]
[1717294719939,0.55,3823.8,3823.1,0.03724713]
[1717294721742,2.61526,3823.7,3823.1,0.03724713]
[1717294721917,2.6155,3823.4,3823.1,0.03724713]
[1717294722107,0.55,3823.3,3822.5,4.0618]
[1717294722301,0.55,3823.3,3822.6,0.03741707]
[1717294722504,2.61581,3822.9,3822.6,0.03741707]
[1717294722826,2.47,3823.2,3821.6,4.0618]
[1717294722827,2.61603,3822.6,3821.6,4.0618]
[1717294723197,0.55,3822.5,3821.8,0.03662783]
[1717294723447,2.61616,3822.4,3821.8,0.03662783]
[1717294723671,0.55,3822.3,3821.6,4.0618]
[1717294723874,0.55,3822.3,3821.6,4.729667]
[1717294724040,0.55,3822.3,3821.7,0.03679408]
[1717294725578,2.61593,3822.8,3822.0,1.688]
[1717294725785,2.61603,3822.6,3822.0,1.688]
[1717294725980,0.55,3822.5,3822.1,0.03665806]
[1717294741712,0.55,3822.5,3822.4,0.703]
[1717294748913,0.55,3822.5,3822.3,0.703]
[1717294749217,2.8154,3822.5,3822.4,0.03704179]
[1717294749576,2.8154,3822.5,3822.3,0.703]
[1717294750013,2.8154,3822.5,3822.4,0.03704179]
[1717294750212,0.55,3822.5,3822.3,0.703]
[1717294750580,0.55,3822.5,3822.4,0.03706214]
[1717294750816,0.55,3822.5,3822.3,0.703]
[1717294757443,0.55,3822.5,3821.7,2.61661]
[1717294757444,2.61615,3822.4,3821.7,2.61661]
[1717294757604,0.55,3822.3,3822.2,0.703]
[1717294758113,0.55,3822.3,3822.2,0.7401963]
[1717294759126,0.55,3822.3,3822.2,0.703]
[1717294760330,0.55,3822.3,3822.2,0.7401963]
[1717294760708,2.61588,3822.8,3822.2,0.7401963]
[1717294760908,3.55,3822.7,3821.7,0.5658277]
[1717294761103,3.55,3822.7,3821.1,2.61699]
[1717294761104,3.0,3822.7,3822.6,0.703]
[1717294761548,3.0,3822.7,3822.6,0.74009849]
[1717294762044,3.0,3822.7,3822.6,0.03709849]
[1717294762244,3.0,3822.7,3822.6,0.74009849]
[1717294762449,3.0,3822.7,3822.6,0.703]
[1717294762743,3.55,3822.7,3822.6,0.74009849]
[1717294764443,3.18713326,3823.0,3822.6,3.06559849]
[1717294764652,2.61568,3823.1,3822.9,0.703]
[1717294765049,2.61568,3823.1,3822.6,2.3255]
[1717294765355,2.61568,3823.1,3823.0,0.703]
[1717294765519,2.61568,3823.1,3823.0,0.73984295]
[1717294765921,2.61568,3823.1,3823.0,0.03684295]
[1717294766160,6.16568,3823.1,3823.0,0.03684295]
[1717294766520,6.16568,3823.1,3822.9,0.703]
[1717294766762,0.55,3823.0,3822.9,0.703]
[1717294768543,7.32,3823.4,3822.9,0.703]
[1717294768544,1.63550122,3823.2,3822.9,0.703]
[1717294768759,1.90808476,3823.7,3823.2,2.3825]
[1717294768963,0.25843352,3825.0,3823.8,2.61519]
[1717294768964,1.63610655,3824.0,3823.8,2.61519]
[1717294769146,1.63610655,3824.7,3823.9,0.73947102]
[1717294769346,1.63610655,3824.7,3824.6,0.703]
[1717294769546,4.86808512,3825.4,3824.6,0.703]
[1717294769547,2.61416,3825.4,3824.6,0.703]
[1717294769768,5.20212711,3825.4,3824.6,0.703]
[1717294770431,3.29570792,3825.4,3824.6,0.703]
[1717294770940,0.55,3825.3,3824.6,0.703]
[1717294771339,3.29570792,3825.4,3824.6,0.703]
[1717294771564,3.29570792,3825.4,3824.2,4.2999]
[1717294771750,3.29570792,3825.4,3824.4,2.61478]
[1717294771955,3.29570792,3825.4,3824.5,0.03595192]
[1717294772774,0.55,3825.3,3824.5,0.03595192]
[1717294773375,0.55,3825.3,3824.6,2.61463]
[1717294773882,0.55,3825.3,3824.7,0.03588401]
[1717294775235,0.55,3825.3,3824.6,2.61463]
[1717294775480,0.97315479,3825.3,3824.6,2.61463]
[1717294777150,0.97315479,3825.3,3824.2,2.61489]
[1717294777378,2.2949,3825.2,3824.3,0.03431849]
[1717294777552,0.55,3825.1,3824.3,0.03431849]
[1717294779260,0.55,3825.1,3824.4,2.61478]
[1717294779581,0.55,3825.1,3824.5,0.034319]
[1717294782527,7.32,3826.2,3824.8,1.685]
[1717294782644,7.32,3826.2,3825.2,1.685]
[1717294783988,2.61367,3826.1,3825.2,4.2992]
[1717294784150,4.543367,3826.0,3825.2,2.6142]
[1717294784351,4.543367,3826.0,3825.3,0.03398647]
[1717294786377,3.55,3826.0,3825.3,0.03398647]
[1717294787945,2.61376,3825.9,3825.3,0.03398647]
[1717294788152,3.55,3825.8,3824.8,4.29946]
[1717294788489,3.55,3825.8,3824.9,0.03382784]
[1717294793578,2.2658,3825.7,3824.9,0.03382784]
[1717294793883,0.55,3825.6,3825.0,0.43332878]
[1717294794381,0.55,3825.6,3825.1,0.0337168]
[1717294795701,0.55,3825.7,3825.1,0.0337168]
[1717294801696,0.55,3825.7,3824.8,4.29946]
[1717294801907,0.55,3825.7,3825.2,0.03354582]
[1717294802089,0.55,3825.7,3824.8,4.29946]
[1717294802412,0.55,3825.7,3824.8,4.729406]
[1717294802568,0.55,3825.7,3824.9,0.05228304]
[1717294802773,0.55,3825.7,3824.9,0.08593071]
[1717294807715,0.55,3825.7,3825.5,0.702]
[1717294808078,0.55,3825.7,3825.6,0.03341005]
[1717294808277,2.2658,3826.1,3825.6,0.03341005]
[1717294808278,3.0,3826.0,3825.6,0.03341005]
[1717294808515,2.2658,3826.1,3825.9,0.702]
[1717294808516,5.2658,3826.1,3825.9,0.702]
[1717294809086,5.2658,3826.1,3825.7,0.702]
[1717294809286,5.2658,3826.1,3826.0,0.03326162]
[1717294809514,5.2658,3826.1,3825.7,0.702]
[1717294809825,5.2658,3826.1,3825.2,2.61418]
[1717294809826,2.61376,3825.9,3825.8,0.03331173]
[1717294810123,6.16376,3825.9,3825.4,0.702]
[1717294810292,3.0,3825.8,3825.4,0.702]
[1717294810490,3.0,3825.8,3825.6,0.702]
[1717294810491,3.55,3825.8,3825.6,0.702]
[1717294810691,7.32,3826.2,3825.6,0.702]
[1717294811005,7.32,3826.2,3825.3,0.261418]
[1717294811006,0.55,3826.1,3825.4,2.61408]
[1717294811205,3.55,3826.1,3826.0,0.702]
[1717294811586,3.55,3826.1,3826.0,0.03323119]
[1717294811905,3.55,3826.1,3825.4,4.29808]
[1717294812102,0.55,3826.1,3826.0,0.03323119]
[1717294812721,0.55,3826.1,3825.5,0.429808]
[1717294812922,0.55,3826.1,3826.0,0.03323119]
[1717294813522,0.55,3826.1,3825.5,0.429808]
[1717294813716,0.55,3826.1,3826.0,0.03323119]
[1717294814019,2.61381,3825.9,3825.1,2.61429]
[1717294814338,0.55,3825.8,3825.1,2.61429]
[1717294814621,0.55,3825.8,3825.2,0.03348494]
[1717294814787,0.55,3825.8,3825.3,0.26477749]
[1717294814981,0.55,3825.8,3825.4,0.03341705]
[1717294819395,2.3486,3825.7,3825.4,0.03341705]
[1717294819704,0.55,3825.8,3825.4,0.03341705]
[1717294822522,0.55,3826.1,3825.4,0.03341705]
[1717294822827,0.55,3826.1,3825.5,0.23329171]
[1717294823293,0.55,3826.1,3825.6,0.0333035]
[1717294830548,0.55,3826.1,3825.5,1.91729171]
[1717294832149,2.6137,3826.0,3825.5,1.684]
[1717294832349,2.8986,3825.9,3825.1,4.2983]
[1717294832514,2.8986,3825.9,3825.6,0.03326797]
[1717294832718,2.8986,3825.9,3825.1,4.2983]
[1717294832950,2.8986,3825.9,3825.7,0.03322134]
[1717294833274,2.8986,3825.9,3825.8,0.03318741]
[1717294833425,2.8986,3825.9,3825.1,4.2983]
[1717294833621,2.8986,3825.9,3825.8,0.702]
[1717294833816,2.8986,3825.9,3825.6,0.702]
[1717294834138,2.8986,3825.9,3825.8,0.03318741]
[1717294834339,2.8986,3825.9,3825.7,0.03322134]
[1717294834512,2.61383,3825.8,3825.6,0.702]
[1717294834714,0.55,3825.7,3825.6,0.702]
[1717294837556,0.55,3825.7,3825.6,0.73530855]
[1717294839545,0.55,3825.7,3825.6,0.03330855]
[1717294839743,0.55,3825.7,3825.6,0.73530855]
[1717294839923,0.55,3825.7,3825.6,0.702]
[1717294843064,2.61399,3825.6,3824.8,3.044456]
[1717294843222,0.55,3825.5,3825.4,0.702]
[1717294847879,2.61412,3825.4,3824.9,0.5330256]
[1717294848032,0.55,3825.3,3824.7,2.2858]
[1717294848233,0.55,3825.3,3825.2,0.702]
[1717294852554,0.55,3825.3,3825.2,0.73559149]
[1717294860468,2.61387,3825.8,3825.2,0.73559149]
[1717294860671,2.61387,3825.8,3825.7,0.702]
[1717294861382,2.61387,3825.8,3825.7,0.73543955]
[1717294861591,2.61363,3826.1,3825.7,0.73543955]
[1717294861771,2.61363,3826.1,3826.0,0.702]
[1717294863368,3.16363,3826.1,3826.0,0.702]
[1717294864887,2.25622812,3827.0,3826.1,2.3406]
[1717294865203,5.31615152,3827.4,3826.9,0.702]
[1717294865204,2.61274,3827.4,3826.9,0.702]
[1717294865506,2.61274,3827.4,3827.3,0.702]
[1717294866779,2.61274,3827.4,3827.3,0.73453152]
[1717294867571,5.61274,3827.4,3827.3,0.73453152]
[1717294867768,6.16274,3827.4,3827.3,0.73453152]
[1717294868174,6.16274,3827.4,3827.3,0.702]
[1717294868373,7.005254,3827.4,3826.4,2.61339]
[1717294868595,5.61274,3827.4,3827.3,0.702]
[1717294868965,5.61274,3827.4,3827.3,0.7340623]
[1717294869295,2.2624,3827.7,3827.3,0.7340623]
[1717294869453,2.6125,3827.8,3827.6,0.702]
[1717294869654,3.0,3827.7,3827.6,0.702]
[1717294870677,3.55,3827.7,3827.6,0.702]
[1717294870879,3.55,3827.7,3826.5,2.3406]
[1717294870880,2.61261,3827.6,3826.5,2.3406]
[1717294871102,0.55,3827.5,3826.5,2.3406]
[1717294871290,0.55,3827.5,3827.2,0.702]
[1717294872507,0.55,3827.5,3826.5,2.3406]
[1717294872715,0.55,3827.5,3827.2,0.702]
[1717294873207,0.55,3827.5,3826.6,0.495407]
[1717294873208,2.2624,3827.3,3826.6,0.495407]
[1717294873414,0.55,3827.2,3826.9,0.702]
[1717294874480,0.55,3827.2,3827.1,0.702]
[1717294874903,0.55,3827.3,3827.1,0.702]
[1717294875112,0.55,3827.3,3827.2,0.702]
[1717294877117,2.61296,3827.1,3826.3,2.61347]
[1717294877324,2.8124,3827.0,3826.8,0.702]
[1717294877634,2.8124,3827.0,3826.4,0.495407]
[1717294878533,0.55,3827.0,3826.4,0.495407]
[1717294878905,0.55,3827.0,3826.5,1.683]
[1717294879231,0.55,3827.0,3826.6,0.2178407]
[1717294882102,2.3996,3826.8,3825.6,2.3265]
[1717294882402,2.3996,3826.8,3825.2,2.3265]
[1717294882403,0.55,3826.7,3825.2,2.3265]
[1717294882735,0.55,3826.7,3825.2,4.0095]
[1717294882736,3.55,3826.7,3825.2,4.0095]
[1717294882939,3.55,3826.7,3825.3,0.69209319]
[1717294883314,2.61357,3826.2,3825.3,0.69209319]
[1717294883529,2.9496,3826.1,3825.3,0.69209319]
[1717294883726,2.3996,3826.1,3825.3,0.69209319]
[1717294884038,0.55,3826.0,3825.4,0.23750932]
[1717294884339,2.61377,3825.9,3825.5,0.02964131]
[1717294884529,0.55,3825.8,3825.5,0.02964131]
[1717294890444,2.61354,3826.3,3825.6,4.0095]
[1717294890612,0.55,3826.2,3825.7,0.42766506]
[1717294890801,0.55,3826.2,3825.7,0.45726128]
[1717294891406,7.32,3826.4,3826.0,1.683]
[1717294891601,7.32,3826.4,3826.1,0.1683]
[1717294892864,7.32,3826.4,3826.2,0.02892656]
[1717294893025,2.61327,3826.7,3826.2,0.02892656]
[1717294893222,0.55,3826.6,3826.2,0.02892656]
[1717294893806,2.61336,3826.5,3826.2,0.02892656]
[1717294894042,0.55,3826.4,3826.2,0.02892656]
[1717294894448,0.55,3826.4,3825.7,2.11066506]
[1717294894655,0.55,3826.4,3826.3,0.02900157]
[1717294895244,0.55,3826.4,3825.8,0.70511451]
[1717294895443,0.55,3826.4,3826.3,0.02900157]
[1717294895651,0.55,3826.4,3825.8,0.70511451]
[1717294895846,0.55,3826.4,3826.3,0.02900157]
[1717294896010,0.55,3826.4,3825.8,0.70511451]
[1717294896209,0.55,3826.4,3826.3,0.02900157]
[1717294896458,0.55,3826.4,3825.9,0.51422796]
[1717294896664,0.55,3826.4,3826.3,0.02900157]
[1717294897125,0.55,3826.4,3825.9,0.51422796]
[1717294897456,0.55,3826.4,3826.0,0.02910335]
[1717294899717,2.61349,3826.3,3826.0,0.02910335]
[1717294899920,0.55,3826.2,3825.5,2.61398]
[1717294900223,0.55,3826.2,3825.6,0.02923909]
[1717294901144,2.61366,3826.1,3825.6,0.02923909]
[1717294901346,2.61376,3825.9,3825.2,2.61424]
[1717294901547,0.55,3825.8,3825.7,0.02920516]
[1717294901748,0.55,3825.8,3825.3,0.494074]
[1717294901917,0.55,3825.8,3825.7,0.02920516]
[1717294902118,0.55,3825.8,3825.3,0.494074]
[1717294902314,0.55,3825.8,3825.7,0.02829681]
[1717294902549,0.55,3825.8,3825.4,0.5434814]
[1717294902718,0.55,3825.8,3825.7,0.02829681]
[1717294902915,0.55,3825.8,3825.4,0.5434814]
[1717294903139,0.55,3825.8,3825.7,0.02829681]
[1717294903345,0.55,3825.8,3825.4,0.5434814]
[1717294903653,0.55,3825.8,3824.3,2.2607]
[1717294903654,0.316376,3825.7,3824.3,2.2607]
[1717294903822,3.0385,3825.8,3824.3,2.2607]
[1717294903823,0.55,3825.6,3824.3,2.2607]
[1717294904025,3.0,3825.7,3824.3,2.2607]
[1717294904254,0.55,3825.6,3824.3,2.2607]
[1717294905350,2.61437,3825.1,3824.5,1.683]
[1717294905570,0.55,3825.0,3824.6,0.39437]
[1717294908682,9.93409,3825.5,3824.9,1.683]
[1717294908863,0.55,3825.4,3825.3,1.683]
[1717294909670,7.32,3826.1,3825.3,6.62203]
[1717294909874,7.32,3826.1,3825.3,6.64913041]
[1717294911272,7.32,3826.1,3825.4,0.66491304]
[1717294911682,7.32,3826.1,3825.5,0.02694128]
[1717294913086,0.55,3826.0,3825.5,0.02694128]
[1717294914177,0.55,3826.2,3825.5,0.02694128]
[1717294914476,0.55,3826.2,3825.7,1.683]
[1717294914782,0.55,3826.2,3825.8,0.19783359]
[1717294919049,0.55,3826.5,3825.8,0.19783359]
[1717294919882,0.55,3826.5,3825.9,2.293]
[1717294920082,0.55,3826.5,3825.9,4.90673]
[1717294920294,0.55,3826.5,3826.1,1.683]
[1717294920807,0.55,3826.5,3826.2,0.0264655]
[1717294922909,9.93299,3827.1,3826.2,2.6400055]
[1717294923062,0.55,3827.0,3826.2,2.6400055]
[1717294923258,0.55,3827.0,3826.3,2.293]
[1717294923473,0.55,3827.0,3826.5,1.683]
[1717294923867,0.55,3827.0,3826.6,0.02618283]
[1717294925797,0.55,3827.0,3826.4,0.66160055]
[1717294925984,0.55,3827.0,3826.5,0.025966]
[1717294926187,0.55,3827.0,3826.2,2.61354]
[1717294926363,0.55,3827.0,3826.3,0.02603385]
[1717294931178,2.3901,3826.9,3826.3,0.02603385]
[1717294931503,0.55,3826.8,3826.3,0.02603385]
[1717294931700,0.55,3826.8,3826.4,0.43225739]
[1717294932118,0.55,3826.8,3826.5,0.02574309]
[1717294932810,0.55,3827.0,3826.5,0.02574309]
[1717294938731,0.55,3827.0,3826.2,2.61354]
[1717294938876,0.55,3827.0,3826.6,0.02573702]
[1717294939277,0.55,3827.0,3826.2,2.61354]
[1717294939579,0.55,3827.0,3826.2,3.043194]
[1717294939801,0.55,3827.0,3826.3,0.0258388]
[1717294945922,2.6131,3826.9,3826.3,0.0258388]
[1717294946090,0.55,3826.8,3826.3,0.0258388]
[1717294946290,5.08382,3826.7,3826.3,0.0258388]
[1717294946504,0.55,3826.6,3825.5,1.683]
[1717294946703,2.61337,3826.5,3825.6,2.61395]